Cogmind - Beta 16.1 @@@ ROGUE MODE // 2026.04.14 @ 12:22:06 Player: Elxavo Result: Destroyed by P-70 Sage with High-powered Shock Rifle Performance ------------- Evolutions (5) 2500 Regions Visited (10) 2000 Robots Destroyed (59) 295 Value Destroyed (2322) 2322 Prototype IDs (26) 520 Alien Tech Used (0) 0 Bonus (300) 300 TOTAL SCORE: 7937 Bonus ------- Aligned with FarCom 300 Cogmind --------- Core Integrity 0/1000 Matter 49/300 Energy 100/100 System Corruption 13% Temperature Cool (0) Movement Core (1000) Ox19 Location -5/Factory Parts ------- > --- POWER (2) -------- (None) > --- PROPULSION (4) --- (None) > --- UTILITY (8) ------ Large Storage Unit High-capacity Storage Unit Core Analyzer > --- WEAPON (3) ------- (None) > --- INVENTORY (20) --- Mining Claw Peak State ------------ > --- POWER ------------ Improved Deuterium Engine Improved Deuterium Engine > --- PROPULSION ------- Armored Treads Armored Treads Armored Treads Improved Medium Treads > --- UTILITY ---------- High-capacity Storage Unit Modified TNC Core Analyzer ECM Suite Improved Light Armor Plating > --- WEAPON ----------- EM Pulse Cannon Advanced Assault Cannon Longsword +1 > --- INVENTORY -------- Nuclear Core Light Nuclear Core Light Nuclear Core Angular Momentum Engine Angular Momentum Engine Angular Momentum Engine Large Storage Unit Heavy Machine Gun Improved Heavy Machine Gun Heavy Flak Cannon Heavy Flak Cannon Heavy Missile Launcher Mining Claw [Rating: 57] Favorites ----------- Power Deuterium Engine Engine Deuterium Engine Power Core Light Nuclear Core Propulsion Armored Treads Treads Armored Treads Leg Aluminum Leg Wheel Armored Wheel Utility High-capacity Storage Unit Device ECM Suite Storage High-capacity Storage Unit Processor Core Analyzer Hackware Hacking Suite Protection Improved Light Armor Plating Weapon Improved Light Cannon Energy Gun Medium Laser Energy Cannon EM Pulse Cannon Ballistic Gun Heavy Assault Rifle Ballistic Cannon Improved Light Cannon Launcher Heavy Missile Launcher Slashing Weapon Longsword +1 Build | -11 -10 -10 -10 -9 -8 -7 -6 -6 -6 -5 ------- Run | Yrd Mat Min Exi Min Mat Fac Fac Low Low Fac Slots Evolved 10 | . . . . . 4 2 2 . . 2 Power 1 | . . . . . . . 1 . . . Propulsion 2 | . . . . . 2 . . . . . Utility 6 | . . . . . 2 2 . . . 2 Weapon 1 | . . . . . . . 1 . . . Parts Attached 68 | 7 7 . 1 3 9 20 7 4 3 7 Power 11 | 1 1 . . . 1 . 2 2 . 4 Engine 8 | 1 1 . . . 1 . 2 . . 3 Core 3 | . . . . . . . . 2 . 1 Reactor . | . . . . . . . . . . . Propulsion 21 | 2 2 . . 2 4 9 1 . . 1 Treads 11 | . . . . . 4 5 1 . . 1 Leg 6 | 2 . . . . . 4 . . . . Wheel 4 | . 2 . . 2 . . . . . . Hover . | . . . . . . . . . . . Flight . | . . . . . . . . . . . Utility 16 | 2 1 . 1 . 2 7 2 . . 1 Device 4 | 1 . . 1 . 1 1 . . . . Storage 4 | 1 1 . . . 1 . . . . 1 Processor 2 | . . . . . . 1 1 . . . Hackware 1 | . . . . . . 1 . . . . Protection 5 | . . . . . . 4 1 . . . Artifact . | . . . . . . . . . . . Weapon 20 | 2 3 . . 1 2 4 2 2 3 1 Energy Gun 2 | 2 . . . . . . . . . . Energy Cannon 3 | . . . . . . 2 . . . 1 Ballistic Gun 6 | . 2 . . . 1 1 . . 2 . Ballistic Cannon 6 | . 1 . . 1 1 . 1 1 1 . Launcher 2 | . . . . . . 1 . 1 . . Special Weapon . | . . . . . . . . . . . Impact Weapon . | . . . . . . . . . . . Slashing Weapon 1 | . . . . . . . 1 . . . Piercing Weapon . | . . . . . . . . . . . Special Melee Weapon . | . . . . . . . . . . . Unidentified Prototypes 1 | . . . . . . . . . 1 . Parts Lost 38 | . . 1 . . . 15 1 4 7 10 Power 9 | . . . . . . 1 . 2 2 4 Propulsion 8 | . . . . . . 4 1 1 1 1 Utility 10 | . . 1 . . . 6 . . 2 1 Weapon 11 | . . . . . . 4 . 1 2 4 Highest Loss Streak 12 | . . 1 . . . 12 1 3 6 5 To Critical Strikes . | . . . . . . . . . . . Average Backups 14 | 4 15 20 19 19 16 19 8 10 7 5 Power 2 | . 2 2 1 1 1 2 3 4 4 3 Propulsion 4 | 2 7 10 10 9 7 5 . . . . Utility 2 | . 1 2 2 3 1 5 1 1 1 . Weapon 4 | . 4 5 5 5 5 5 4 5 2 1 Tool/Special . | . . . . . . . . . . . Unused Backups 11 | . 5 1 1 . . 3 . . . 1 Power 3 | . . 1 1 . . 1 . . . . Propulsion 2 | . 2 . . . . . . . . . Utility 1 | . 1 . . . . . . . . . Weapon 5 | . 2 . . . . 2 . . . 1 Tool/Special . | . . . . . . . . . . . Average Slot Usage (%) 86 | . 99 86 100 100 99 97 87 78 46 28 Engine 7 | . 14 14 14 14 8 7 12 1 . 1 Core 1 | . . . . . . . . 11 6 . Treads 16 | . . . . . 35 28 21 13 3 1 Wheel 5 | . 23 28 28 28 . . . . . . Device 11 | . 14 1 14 14 17 14 6 6 6 3 Storage 11 | . 14 14 14 14 18 14 6 6 6 5 Processor 3 | . . . . . . . 12 13 6 5 Hackware 2 | . . . . . . 6 . . . . Protection 3 | . . . . . . 6 5 6 3 . Ballistic Gun 7 | . 12 14 14 23 9 6 . . 6 7 Ballistic Cannon 7 | . 11 14 14 4 9 5 5 6 2 . Slashing Weapon 1 | . . . . . . . 5 6 . . Peak Build Rating 57 | 7 13 13 14 14 21 39 57 54 49 38 Average Rating 29 | 5 11 12 13 13 18 34 50 48 23 20 On Entrance 20 | . 7 13 12 14 14 21 21 54 49 19 Avg Prop Armor Cover (%) . | . . . . . . . . . . . Naked Turns . | . . . . . . . . . . . Heaviest Build 91 | 13 53 53 53 53 64 91 80 80 76 86 Greatest Support 90 | 20 24 24 24 24 80 80 90 70 20 70 Greatest Overweight (x) 28 | 2 2 2 2 2 . 2 1 1 22 28 Average Overweight (x) 1 | . 1 2 2 2 . . . 1 9 9 Largest Inventory Capacity 20 | 8 20 20 20 20 20 20 20 20 20 20 Average Capacity 19 | 7 16 20 20 20 20 20 20 20 20 20 Most Carried 20 | 8 20 20 20 20 20 20 14 13 10 7 Average Carried 14 | 4 15 19 19 19 16 19 8 10 7 5 Final Capacity 20 | 8 20 20 20 20 20 20 20 20 20 20 Final Carried 20 | 8 20 20 20 17 20 10 13 10 7 1 Class Distribution -------------------- 98% | Mutant Dominant Class ---------------- Mutant | -10/Materials Mutant | -10/Mines Mutant | -10/Exiles Mutant | -9/Mines Mutant | -8/Materials Mutant | -7/Factory Mutant | -6/Factory Mutant | -6/Lower Caves Mutant | -6/Lower Caves Mutant | -5/Factory Resources | -11 -10 -10 -10 -9 -8 -7 -6 -6 -6 -5 ----------- Run | Yrd Mat Min Exi Min Mat Fac Fac Low Low Fac Matter Collected 2095 | 224 274 40 . 157 329 588 135 331 17 . Remotely . | . . . . . . . . . . . Salvage Created 2010 | 42 193 9 . 148 287 737 135 363 13 83 Parts 134 | 8 17 . . 16 13 46 13 15 . 6 Haulers Intercepted 1 | . 1 . . . . . . . . . Recyclers Shooed 1 | . . . . . . 1 . . . . Parts Field Recycled . | . . . . . . . . . . . Retrieved Matter . | . . . . . . . . . . . Parts Self-Destructed 15 | . . . . . . . . 15 . . Prevented . | . . . . . . . . . . . Parts Restored . | . . . . . . . . . . . Kills | -11 -10 -10 -10 -9 -8 -7 -6 -6 -6 -5 ------- Run | Yrd Mat Min Exi Min Mat Fac Fac Low Low Fac Combat Hostiles Destroyed 48 | . 4 1 . 4 6 19 3 8 1 2 Melee 5 | . . . . . . . 2 3 . . Guns 21 | . 1 1 . 4 5 9 . . 1 . Cannons 19 | . 3 . . . 1 8 . 5 . 2 AOE 2 | . . . . . . 2 . . . . Classes Destroyed 16 | 1 3 1 . 3 3 3 1 1 . . Worker 2 | . . . . . 1 1 . . . . Builder 2 | . . . . 1 . . . . . 1 Tunneler 2 | 2 . . . . . . . . . . Hauler 1 | . 1 . . . . . . . . . Recycler 1 | . . . . 1 . . . . . . Operator 1 | . . . . . . . 1 . . . Watcher 3 | . 2 . . . 1 . . . . . Swarmer 9 | . . . . 4 . 3 2 . . . Grunt 18 | . 4 . . . 2 5 . 6 1 . Brawler 1 | . . . . . . . . 1 . . Sentry 6 | . . . . . 2 3 1 . . . Specialist 4 | . . . . . . 4 . . . . Hunter 4 | . . . . . 2 . . 1 . 1 Programmer 4 | . . . . . . 3 . . . 1 Heavy 1 | . . . . . . 1 . . . . Assembled 1 | . . 1 . . . . . . . . Best Kill Streak 4 | 2 3 1 . 4 3 3 2 4 1 1 Combat Bots Only 4 | . 2 1 . 3 2 3 2 4 1 1 Max Kills in Single Turn 2 | 1 1 1 . 2 2 1 1 1 1 1 Gunslinging . | . . . . . . . . . . . Exploded 1 | . . . . . . 1 . . . . Melee 1 | . . . . . . . 1 1 . . Uniques/NPCs Destroyed . | . . . . . . . . . . . Combat | -11 -10 -10 -10 -9 -8 -7 -6 -6 -6 -5 -------- Run | Yrd Mat Min Exi Min Mat Fac Fac Low Low Fac Hostile Shots Fired 802 | . 13 4 . 48 36 333 51 63 35 219 Missed 215 | . 5 1 . 6 9 104 19 15 8 48 Hits 587 | . 8 3 . 42 27 229 32 48 27 171 Melee 8 | . . 1 . . . . . 2 5 . Projectile 579 | . 8 2 . 42 27 229 32 46 22 171 Critical Strikes 20 | . . . . 1 . 7 . 2 1 9 Damage Taken 8942 | . 111 111 . 326 367 3361 322 917 482 2945 Core 1803 | . 39 . . 50 59 352 27 143 115 1018 Absorbed by Shields . | . . . . . . . . . . . Ignored by Resistances 303 | . . . . . . 303 . . . . Regen/Repaired (Parts) 29 | . . . . . 29 . . . . . Core Remaining (%) 73 | 100 . . . 64 89 49 . . 66 . Volleys Fired 189 | 3 14 2 . 14 28 77 6 15 11 19 Largest 2 | 2 2 2 . 2 2 2 2 2 2 2 Hottest 103 | 100 100 56 . 56 56 102 103 84 84 96 Shots Fired 350 | 6 28 5 . 28 56 152 7 28 15 25 Gun 157 | 6 17 2 . 21 28 71 . . 5 7 Cannon 176 | . 11 3 . 7 28 71 7 24 7 18 Launcher 17 | . . . . . . 10 . 4 3 . Special . | . . . . . . . . . . . Kinetic 284 | . 22 5 . 28 56 117 1 24 12 19 Thermal 33 | 6 6 . . . . 21 . . . . Explosive 17 | . . . . . . 10 . 4 3 . Electromagnetic 16 | . . . . . . 4 6 . . 6 Robot Hit Streak 12 | 2 3 1 . 4 9 12 7 8 5 5 Robot Miss Streak 12 | 2 4 2 . 5 2 4 . 8 2 12 Penetration Max 1 | . . . . . . 1 . . . . Secondary Targets . | . . . . . . . . . . . Shots Hit Robots 243 | 3 14 1 . 12 37 109 11 27 10 19 Core Hits 122 | 2 10 1 . 6 17 39 3 27 4 13 Critical Kills . | . . . . . . . . . . . Critical Parts Destroyed 1 | . . . . . . 1 . . . . Critical Strikes 5 | . 1 . . . . 2 1 1 . . Destroy 1 | . . . . . . 1 . . . . Blast 2 | . 1 . . . . 1 . . . . Sever 2 | . . . . . . . 1 1 . . Melee Attacks 16 | . . . . . . . 6 10 . . Impact . | . . . . . . . . . . . Slashing 16 | . . . . . . . 6 10 . . Piercing . | . . . . . . . . . . . Sneak Attacks . | . . . . . . . . . . . Combat Hostiles . | . . . . . . . . . . . Follow-up Attacks . | . . . . . . . . . . . Damage Inflicted 6100 | 37 270 13 . 235 608 2610 367 941 337 682 Guns 1896 | 37 79 13 . 154 293 1202 . . 65 53 Cannons 2712 | . 191 . . 81 315 1110 141 434 113 327 Explosions 898 | . . . . . . 298 . 139 159 302 Melee 594 | . . . . . . . 226 368 . . Ramming . | . . . . . . . . . . . Kinetic 3899 | . 257 13 . 235 608 1884 . 434 178 290 Thermal 458 | 37 13 . . . . 408 . . . . Explosive 898 | . . . . . . 298 . 139 159 302 Electromagnetic 251 | . . . . . . 20 141 . . 90 Impact . | . . . . . . . . . . . Slashing 594 | . . . . . . . 226 368 . . Piercing . | . . . . . . . . . . . Highest Corruption 13 | . 2 6 6 6 . 5 . . . 13 Average Corruption 4 | . 2 5 6 6 . 5 . . . 4 Corruption Purged . | . . . . . . . . . . . Corruption Blocked . | . . . . . . . . . . . Effects 50 | . 9 4 22 3 . 3 . . . 9 Message Errors 11 | . 2 1 5 . . . . . . 3 Matter Fused 16 | . 2 2 5 1 . 3 . . . 3 Heat Flow Errors 4 | . . . 4 . . . . . . . Energy Discharges 4 | . 2 . 2 . . . . . . . Parts Rejected 1 | . . . . 1 . . . . . . Parts Fused 1 | . . . 1 . . . . . . . Data Loss (minor) 11 | . 3 . 4 1 . . . . . 3 Data Loss (major) 1 | . . . 1 . . . . . . . Misfires 1 | . . 1 . . . . . . . . Overload Shots . | . . . . . . . . . . . Overflow Damage 119 | . . . . . 4 10 . . 34 71 Projectiles 8 | . . . . . 4 3 . . 1 . Explosions 111 | . . . . . . 7 . . 33 71 Melee . | . . . . . . . . . . . Knockbacks 23 | . 2 . . 1 5 7 . 7 . 1 Impact . | . . . . . . . . . . . Kinetic 21 | . 2 . . 1 5 5 . 7 . 1 Secondary 2 | . . . . . . 2 . . . . Self-Inflicted Damage 63 | . . . . . . . . . 63 . Shots 1 | . . . . . . . . . 1 . Rammed . | . . . . . . . . . . . Targets Rammed . | . . . . . . . . . . . Kicked . | . . . . . . . . . . . Crushed . | . . . . . . . . . . . Highest Temperature 258 | 78 117 . 211 . 2 258 90 49 22 88 Average Temperature 54 | 33 33 . 90 . 2 67 36 23 10 44 Received Heat Transfer 1416 | . 66 . . . 81 687 60 306 216 . Siege Activations . | . . . . . . . . . . . Martial Activations . | . . . . . . . . . . . Shielding Activations . | . . . . . . . . . . . Robots Disrupted 1 | . . . . . . . . . . 1 Combat Hostiles 1 | . . . . . . . . . . 1 Robots Corrupted 1 | . . . . . . . 1 . . . Combat Hostiles 1 | . . . . . . . 1 . . . Parts Fried 1 | . . . . . . . 1 . . . Impact Corruptions . | . . . . . . . . . . . Robots Melted . | . . . . . . . . . . . Combat Hostiles . | . . . . . . . . . . . Parts Melted 3 | 1 . . . . . 2 . . . . Heat Transferred 703 | 111 37 . . . . 555 . . . . Parts Sabotaged . | . . . . . . . . . . . Parts Stolen 4 | . . . . . . . . . 4 . Parts Stripped . | . . . . . . . . . . . Power Chain Reactions . | . . . . . . . . . . . Alert | -11 -10 -10 -10 -9 -8 -7 -6 -6 -6 -5 ------- Run | Yrd Mat Min Exi Min Mat Fac Fac Low Low Fac Maximum Alert Level 1 | . . . . . . 1 . . . . Low Security (%) 99 | 100 100 100 . 100 100 99 100 . . 100 Level 1 . | . . . . . . . . . . . Level 2 . | . . . . . . . . . . . Level 3 . | . . . . . . . . . . . Level 4 . | . . . . . . . . . . . Level 5 . | . . . . . . . . . . . High Security . | . . . . . . . . . . . Max Security . | . . . . . . . . . . . Peak Influence 212 | 5 68 . . 115 77 212 79 . . 111 Initial 79 | . . . . . 35 24 79 . . . Average 28 | . 12 . . 80 25 41 18 . . 14 Influence Increases 1458 | 10 123 . . 130 207 554 75 190 20 149 Destroy 0b10 Robot/C 940 | . 80 . . 80 120 380 60 160 20 40 Destroy 0b10 Robot/NC 60 | 10 15 . . 10 10 5 5 . . 5 Destroy Leader 248 | . 16 . . 10 52 120 10 30 . 10 Successful Hack 33 | . 11 . . . 22 . . . . . Disable Machine 60 | . . . . 30 . . . . . 30 Destroy Structure 117 | . 1 . . . 3 49 . . . 64 Influence Decreases 1447 | 10 123 . . 40 242 447 215 212 20 138 Entered New Map 178 | . . . . . 55 31 83 9 . . Time Decay 1006 | 10 123 . . 40 187 266 132 170 20 58 Lost Part 263 | . . . . . . 150 . 33 . 80 Squads Dispatched 14 | . . . . . 2 8 2 . . 2 Investigation 3 | . . . . . 1 1 1 . . . Extermination 4 | . . . . . . 3 . . . 1 Reinforcement 6 | . . . . . 1 4 . . . 1 Assault . | . . . . . . . . . . . Garrison 1 | . . . . . . . 1 . . . Intercept . | . . . . . . . . . . . Searches Triggered . | . . . . . . . . . . . Construction Impeded . | . . . . . . . . . . . Haulers Reinforced . | . . . . . . . . . . . Active Scanning Responses . | . . . . . . . . . . . Cargo Convoy Interrupts . | . . . . . . . . . . . Stealth | -11 -10 -10 -10 -9 -8 -7 -6 -6 -6 -5 --------- Run | Yrd Mat Min Exi Min Mat Fac Fac Low Low Fac Distress Signals . | . . . . . . . . . . . Communications Jammed . | . . . . . . . . . . . Distress Signals . | . . . . . . . . . . . Times Spotted 101 | . 6 19 . 3 13 28 9 12 5 6 Peak Tracking Total 20 | . 2 20 . 3 2 3 3 4 3 3 Tactical Retreats 7 | . . . . . . 1 1 4 1 . ECM-based Alert Blocks 10 | . . . . . . 1 4 4 1 . Traps | -11 -10 -10 -10 -9 -8 -7 -6 -6 -6 -5 ------- Run | Yrd Mat Min Exi Min Mat Fac Fac Low Low Fac Traps Triggered 3 | . 1 . . . . 1 . . . 1 Indirectly . | . . . . . . . . . . . Trap Hack Attempts . | . . . . . . . . . . . Triggered . | . . . . . . . . . . . Disarmed . | . . . . . . . . . . . Reprogrammed . | . . . . . . . . . . . Reused . | . . . . . . . . . . . Traps Extracted . | . . . . . . . . . . . Installed . | . . . . . . . . . . . Triggered . | . . . . . . . . . . . Machines | -11 -10 -10 -10 -9 -8 -7 -6 -6 -6 -5 ---------- Run | Yrd Mat Min Exi Min Mat Fac Fac Low Low Fac Machines Disabled 4 | . . . . 2 . . . . . 2 Max in Single Turn 2 | . . . . 1 . . . . . 2 Machines Repaired . | . . . . . . . . . . . Machines Dismantled . | . . . . . . . . . . . Machines Sabotaged . | . . . . . . . . . . . Overloaded Fab Kills . | . . . . . . . . . . . Hacking | -11 -10 -10 -10 -9 -8 -7 -6 -6 -6 -5 --------- Run | Yrd Mat Min Exi Min Mat Fac Fac Low Low Fac Machines Accessed 17 | . 2 . 5 . 4 4 2 . . . Terminals 7 | . 2 . . . 3 1 1 . . . Fabricators . | . . . . . . . . . . . Repair Stations 1 | . . . . . 1 . . . . . Recycling Units 1 | . . . . . . 1 . . . . Scanalyzers 1 | . . . . . . 1 . . . . Garrison Access 2 | . . . . . . 1 1 . . . Total Hacks 81 | . 5 . 50 . 12 10 4 . . . Successful 65 | . 2 . 50 . 7 5 1 . . . Failed 16 | . 3 . . . 5 5 3 . . . Catastrophic 2 | . . . . . . 1 1 . . . Database Lockouts . | . . . . . . . . . . . Manual 1 | . . . 1 . . . . . . . Terminals 17 | . 5 . . . 8 2 2 . . . Fabricators . | . . . . . . . . . . . Repair Stations 4 | . . . . . 4 . . . . . Recycling Units 5 | . . . . . . 5 . . . . Scanalyzers 1 | . . . . . . 1 . . . . Garrison Access 4 | . . . . . . 2 2 . . . Terminal Hacks 57 | . 2 . 50 . 4 . 1 . . . Record 51 | . . . 49 . 1 . 1 . . . Prototype ID Bank 1 | . . . . . 1 . . . . . Branch Access Points 1 | . 1 . . . . . . . . . Emergency Access Points 1 | . . . . . 1 . . . . . Locate Traps 1 | . 1 . . . . . . . . . Zone Layout 1 | . . . . . 1 . . . . . Proto ID Catalog 1 | . . . 1 . . . . . . . Fabricator Hacks . | . . . . . . . . . . . Repair Station Hacks 3 | . . . . . 3 . . . . . Scan Component 2 | . . . . . 2 . . . . . Repair 1 | . . . . . 1 . . . . . Recycling Unit Hacks 5 | . . . . . . 5 . . . . Recycle Component 2 | . . . . . . 2 . . . . Process 2 | . . . . . . 2 . . . . Retrieve Matter 1 | . . . . . . 1 . . . . Scanalyzer . | . . . . . . . . . . . Garrison Access Hacks . | . . . . . . . . . . . Unauthorized Hacks . | . . . . . . . . . . . Terminals . | . . . . . . . . . . . Fabricators . | . . . . . . . . . . . Repair Stations . | . . . . . . . . . . . Recycling Units . | . . . . . . . . . . . Scanalyzers . | . . . . . . . . . . . Garrison Access . | . . . . . . . . . . . Data Cores Recovered 1 | . . . . . . . 1 . . . Used . | . . . . . . . . . . . Hacking Detections 10 | . 1 . . . 3 4 2 . . . Full Trace Events 3 | . . . . . 1 1 1 . . . Feedback Events . | . . . . . . . . . . . Feedback Blocked . | . . . . . . . . . . . Robot Schematics Acquired . | . . . . . . . . . . . Robots Built . | . . . . . . . . . . . Authchips . | . . . . . . . . . . . Time . | . . . . . . . . . . . Total Robot Build Rating . | . . . . . . . . . . . Part Schematics Acquired . | . . . . . . . . . . . Parts Built . | . . . . . . . . . . . Authchips . | . . . . . . . . . . . Time . | . . . . . . . . . . . Total Part Build Rating . | . . . . . . . . . . . Part Studies Acquired . | . . . . . . . . . . . Parts Repaired 1 | . . . . . 1 . . . . . Time 38 | . . . . . 38 . . . . . Parts Recycled 2 | . . . . . . 2 . . . . Recycled Matter 5 | . . . . . . 5 . . . . Retrieved Matter 5 | . . . . . . 5 . . . . Retrieved Components . | . . . . . . . . . . . Parts Scanalyzed . | . . . . . . . . . . . Part Schematics Acquired . | . . . . . . . . . . . Parts Damaged . | . . . . . . . . . . . Bothacking | -11 -10 -10 -10 -9 -8 -7 -6 -6 -6 -5 ------------ Run | Yrd Mat Min Exi Min Mat Fac Fac Low Low Fac Used RIF Installer . | . . . . . . . . . . . Robots Hacked . | . . . . . . . . . . . Non-combat . | . . . . . . . . . . . Combat . | . . . . . . . . . . . Robot Hacks Applied . | . . . . . . . . . . . Relay Couplers Released . | . . . . . . . . . . . Fabnet Peak Effective % . | . . . . . . . . . . . Robots Rewired . | . . . . . . . . . . . Allies Hacked . | . . . . . . . . . . . Hacks Repelled . | . . . . . . . . . . . Allies | -11 -10 -10 -10 -9 -8 -7 -6 -6 -6 -5 -------- Run | Yrd Mat Min Exi Min Mat Fac Fac Low Low Fac Total Allies . | . . . . . . . . . . . Largest Group . | . . . . . . . . . . . Highest-Rated Group . | . . . . . . . . . . . Highest-Rated Ally . | . . . . . . . . . . . Total Orders . | . . . . . . . . . . . Ally Attacks . | . . . . . . . . . . . Total Damage . | . . . . . . . . . . . Kills . | . . . . . . . . . . . Allies Corrupted . | . . . . . . . . . . . Allies Melted . | . . . . . . . . . . . Intel | -11 -10 -10 -10 -9 -8 -7 -6 -6 -6 -5 ------- Run | Yrd Mat Min Exi Min Mat Fac Fac Low Low Fac Active Infowar (turns) 6531 | 36 604 18 641 92 819 2240 489 995 271 326 Seismic 4297 | 36 604 18 641 92 819 2087 . . . . T.N.C. 1483 | . . . . . . . 487 995 1 . ECM 5139 | . . . . . 818 2240 489 995 271 326 Robot Analysis Total . | . . . . . . . . . . . Derelict Logs Recovered . | . . . . . . . . . . . Drone Launches . | . . . . . . . . . . . Drone Recoveries . | . . . . . . . . . . . Exploration | -11 -10 -10 -10 -9 -8 -7 -6 -6 -6 -5 ------------- Run | Yrd Mat Min Exi Min Mat Fac Fac Low Low Fac Turns Passed 7033 | 113 604 222 641 92 819 2240 489 995 271 547 Spaces Moved 3009 | 69 444 179 521 33 233 824 199 379 40 88 Core 72 | 7 . . . . . . . . 18 47 Treads 1672 | . . . . . 233 798 199 379 22 41 Legs 149 | 62 61 . . . . 26 . . . . Wheels 1116 | . 383 179 521 33 . . . . . . Hover . | . . . . . . . . . . . Flight . | . . . . . . . . . . . Fastest Speed 50 | 50 90 120 120 120 160 160 167 245 410 160 Average Speed 177 | 115 114 120 120 120 160 169 222 245 625 560 Slowest Speed 1450 | 150 120 120 120 120 160 260 250 246 1150 1450 Overloaded Moves . | . . . . . . . . . . . Propulsion Burnouts . | . . . . . . . . . . . Robots Hopped . | . . . . . . . . . . . Potential Cave-ins . | . . . . . . . . . . . Cave-ins Triggered 1 | . . . . . . 1 . . . . Exploration Rate (%) 29 | 4 60 44 93 11 27 22 6 50 7 3 Regions Visited 10 Branch Regions 5 Pre-discovered Areas 1 | . . . 1 . . . . . . . Known Exits Taken 1 | . 1 . . . . . . . . . Unknown Exits Taken 9 | 1 . 1 1 1 1 1 1 1 1 . Scrap Searched 1 | . . 1 . . . . . . . . Spaces Dug . | . . . . . . . . . . . Terrain Destroyed 203 | . 1 . . . 1 72 . 54 35 40 Melee . | . . . . . . . . . . . Projectile 10 | . 1 . . . 1 3 . 3 2 . AOE 193 | . . . . . . 69 . 51 33 40 Terrain Rammed . | . . . . . . . . . . . Walls Destroyed . | . . . . . . . . . . . Machines Disabled . | . . . . . . . . . . . Actions | -11 -10 -10 -10 -9 -8 -7 -6 -6 -6 -5 --------- Run | Yrd Mat Min Exi Min Mat Fac Fac Low Low Fac Total 4339 | 93 514 182 537 57 623 1519 233 407 53 121 Wait 971 | 7 22 . 13 3 342 572 6 . . 6 Move 2999 | 68 443 178 520 32 232 823 198 378 39 88 Hop . | . . . . . . . . . . . Pick Up 59 | 8 17 1 2 1 8 12 10 . . . Fast Attach 17 | 7 4 . . . 1 3 . . . 2 Attach 36 | . . . 1 1 6 9 7 3 3 6 Detach 2 | . . . . . 2 . . . . . Swap 20 | . 3 . . 3 3 10 . 1 . . Drop 30 | . 11 1 1 3 1 13 . . . . Fire 189 | 3 14 2 . 14 28 77 6 15 11 19 Melee 16 | . . . . . . . 6 10 . . Ram . | . . . . . . . . . . . Kick . | . . . . . . . . . . . Crush . | . . . . . . . . . . . Escape Stasis . | . . . . . . . . . . . Rewire . | . . . . . . . . . . . Trap . | . . . . . . . . . . . Miscellaneous . | . . . . . . . . . . . Route ------- -11/Scrapyard -10/Materials (discovered 3 exits: [*Mat] / *Min x2) -10/Mines -10/Exiles -9/Mines -8/Materials -7/Factory -6/Factory -6/Lower Caves -6/Lower Caves -5/Factory History --------- Turn | Location | Event 20 | -11/Scrapyard | Discovered new exit (range 15) 114 | -11/Scrapyard | Entered Materials 214 | -10/Materials | Discovered new exit (range 12) 220 | -10/Materials | Identified exit to Mines 320 | -10/Materials | Build established: Mutant 652 | -10/Materials | Discovered new exit (range 16) 718 | -10/Materials | Entered Mines 719 | -10/Mines | Assembled infested the area 906 | -10/Mines | Met 8R-AWN 935 | -10/Mines | Discovered new exit (range 5) 940 | -10/Mines | Entered Exiles 976 | -10/Exiles | Welcomed by 8R-AWN 993 | -10/Exiles | Met EX-HEX 1066 | -10/Exiles | Met EX-DEC 1100 | -10/Exiles | Learned location of Zion (-6) 1138 | -10/Exiles | Met EX-BIN 1163 | -10/Exiles | Aligned with FarCom system 1165 | -10/Exiles | Given EX-Vault access code 1227 | -10/Exiles | Opened EX-Vault 1238 | -10/Exiles | Found Longsword +1 1245 | -10/Exiles | Found Modified TNC 1285 | -10/Exiles | Warned to stay clear of 0b10 Research branches 1362 | -10/Exiles | Visited The Gauntlet 1567 | -10/Exiles | Discovered new exit (range 14) 1581 | -10/Exiles | Stole two prototypes: Modified TNC, Longsword +1 1581 | -10/Exiles | Entered Mines 1584 | -9/Mines | Discovered new exit (range 7) 1646 | -9/Mines | YI-UF0 nonchalantly dropped a Grenade Launcher on the ground 1673 | -9/Mines | Entered Materials 1673 | -8/Materials | Evolved 4 slots: Propulsion x2, Utility x2 2258 | -8/Materials | Repaired Deuterium Engine 2479 | -8/Materials | Discovered new exit (range 8) 2492 | -8/Materials | Entered Factory 2492 | -7/Factory | Evolved 2 slots: Utility x2 2494 | -7/Factory | FarCom data flow suspended 4575 | -7/Factory | Discovered new exit (range 8) 4635 | -7/Factory | Crushed by falling debris 4666 | -7/Factory | Lost 12 parts (4n6u2w) 4723 | -7/Factory | Core integrity fell below 50% 4732 | -7/Factory | Entered another Factory area 4732 | -6/Factory | Evolved 2 slots: Power x1, Weapon x1 5191 | -6/Factory | Discovered new exit (range 8) 5205 | -6/Factory | Garrison activated, responded to threat 5221 | -6/Factory | Entered Lower Caves 5255 | -6/Lower Caves | Lost 3 parts (2n1w) 6194 | -6/Lower Caves | Discovered new exit (range 10) 6216 | -6/Lower Caves | Entered another Lower Caves area 6217 | -6/Lower Caves | Longsword +1 stolen by Master Thief 6218 | -6/Lower Caves | Encountered a Master Thief 6218 | -6/Lower Caves | Encountered a Master Thief 6222 | -6/Lower Caves | Imp. Medium Treads stolen by Master Thief 6228 | -6/Lower Caves | Encountered a Master Thief 6228 | -6/Lower Caves | Hvy. Flak Cannon stolen by Master Thief 6390 | -6/Lower Caves | Lost 6 parts (2p1n1u2w) 6436 | -6/Lower Caves | Discovered new exit (range 7) 6487 | -6/Lower Caves | Entered Factory 6487 | -5/Factory | Evolved 2 slots: Utility x2 6959 | -5/Factory | Core integrity fell below 50% 6991 | -5/Factory | System corruption reached 10% 7008 | -5/Factory | Lost 5 parts (3p1n1w) 7013 | -5/Factory | Core integrity fell below 20% 7034 | -5/Factory | Destroyed by P-70 Sage with High-powered Shock Rifle Last Messages --------------- 06959_ Slug penetrates Wall. 06961_ Nuclear Core destroyed. 06964_ M-28 Smith repairs P-70 Sage. 06965_ Slug penetrates Wall. 06965_ Identified Lrg. Storage Unit. 06967_ ANYFX#SGXAAX,BTJXM NOKI7LEIAZVHPNV>R 06973_ Wall collapses. 06977_ Penetrated by Slug. 06977_ Angular Momentum Engine destroyed. 06984_ Penetrated by Slug. 06990_ Slug penetrates Wall. 07009_ Angular Momentum Engine destroyed. 07011_ System corrupted: Matter fused (-10). 07014_ Penetrated by Slug. 07021_ K-01 Serf collects debris. 07026_ Penetrated by Slug. 07031_ K-01 Serf destroyed. 07032_ Penetrated by Slug. 07034_ HNM6/PKDL>DUZA/4YQGIOX87ECD6 <1JFL [Achievement: Just Browsing] Map ----- +----------------------------------------------------+ | ?## #![ ##??????????????? | | ?# # "" #???????????????? | | ?# # "" #???????????????? | | ?# # "T #############???? | | ?? ## ### "" ???? | | ### ??# "" ?????? | | # ???# #????????? | | # # ???# #????????? | | # # #???# #????????? | | # # #???# """ #????????? | | # # ##### """ #????????? | | # # ^ """ #????????? | | # / #????????? | | # # ^ ^ #????????? | | # # ####+####### #????????? | | # # # ??### ########???? | | # / # ????# # #???? | | # ### # ?????# + """" ????? | | # #?# # "??????# # """" #???? | | # #?# # ???????# # """" #???? | | ####+###?# # ???????# # """" #???? | | ???#%;#### # ????????# # """" #???? | | ???#*h # ?????????# # """" #???? | | ???# ##+#??######## + #???? | | ???# p # # # #???? | | ???# @; [ """"?# # #???? | | ???##########%# ""F"?# # #???? | | ????????????# #?? "" # ########???? | | ????????????# #???? # #??????????? | | ????????????# #?????? # #??????? | | ????????????# #????????## #?????? | | ????????????# #?????????# #????? | | ???????????? ?????????# #???? | | ???????????? " ?????????# #??? ? | | ???????????? ?????????# #?? #??? | | ????????????###??????#### ### #??? | | ?????????????????????# #??? | | ?????????????????????# #??? | | ?????????????????????# #??? | | ?????????????????????# #??? | | ?????????????????????# #??? | | ?????????????????????# ########??? | | ?????????????????????# #?????????? | | ?????????????????????#######?????????? | | ?????????????????????????????????????? | | ?????????????????????????????????????? | | ?????????????????????????????????????? | | ?????????????????????????????????????? | | ?????????????????????????????????????? | | ?????????????????????????????????????? | +----------------------------------------------------+ Best States ------------- Heat Dissipation 40 Energy Generation 31 Energy Capacity 500 Matter Stores 386 Matter Capacity 500 Sight Range 16 Terrain Scan Density 10 ECM Strength 1 Armor Coverage 225 Resistance: KI 30 Utility Shielding 33 Evasion (%) 55 Core Analysis 6 Recoil Reduction 4 Kinecelleration 30 Offensive Hacking 10 Item Schematics ----------------- None Robot Schematics ------------------ None Fabricated ------------ Nothing Repaired ---------- Deuterium Engine | 61% | -8/Materials Studied --------- None Alien Tech Used ----------------- None Achievements -------------- Consequences Just Browsing Challenges ------------ None Game ------ Seed SapperAutogunSabre Manual? 0 Play Time 01:11:20 Cumulative 74.1 hours Start 2026.04.14 @ 11:09:18 End 2026.04.14 @ 12:22:06 Sessions 1 Manual Loads 0 Difficulty Rogue Special Mode None Game No. 93 Rogue 93 Adventurer 0 Explorer 0 Win Type - Total 0 Types 0/0/0/0/0/0/0/0/0/0 Lore% 31 Gallery% 25 Achievement% 19 Wizard Run 0 Options --------- Layout 0 ASCII 0 Keyboard 0 Movement Mouse Keybinds 0 Fullscreen 1 Font 18/SmallcapsGlow Map View 76x50 Zoom Use 0% Tactical HUD 1 Map Filters NONE Filters LOW_CONTRAST(13,24,33) Steam 1 RUN: d92ffc44-b290-4a46-a35f-404af204ac88